Cogmind - Beta 13 @@@ ROGUE MODE // 2024.05.23 @ 12:19:10 Player: Falling_Sands Result: Self-destructed Performance ------------- Evolutions (2) 1000 Regions Visited (4) 800 Robots Destroyed (18) 90 Value Destroyed (534) 534 Prototype IDs (0) 0 Alien Tech Used (0) 0 Bonus (0) 0 TOTAL SCORE: 2424 Bonus ------- None Cogmind --------- Core Integrity 550/550 Matter 254/300 Energy 265/265 System Corruption 0% Temperature Cool (0) Movement Treading (160) Location -8/Materials Parts ------- > --- POWER (1) -------- Improved Ion Engine > --- PROPULSION (3) --- Light Treads Light Treads > --- UTILITY (5) ------ Large Storage Unit Sensor Array Power Shielding > --- WEAPON (2) ------- Assault Rifle Mini Grenade Launcher > --- INVENTORY (15) --- Improved Ion Engine Improved Ion Engine Small Storage Unit Large Storage Unit Large Battery (200) Medium Matter Pod (100) Medium Matter Pod (100) Core Shielding Particle Gun Rocket Launcher Mining Laser Peak State ------------ > --- POWER ------------ Improved Ion Engine > --- PROPULSION ------- Light Treads Light Treads > --- UTILITY ---------- Large Storage Unit Sensor Array Power Shielding Light Armor Plating > --- WEAPON ----------- Shock Rifle Beam Rifle > --- INVENTORY -------- Improved Ion Engine Improved Ion Engine Light Treads Light Treads Small Storage Unit Large Storage Unit Large Battery Medium Matter Pod Medium Matter Pod Core Shielding Particle Gun Assault Rifle Rocket Launcher Mini Grenade Launcher Mining Laser [Rating: 15] Favorites ----------- Power Ion Engine Engine Ion Engine Propulsion Light Treads Treads Light Treads Utility Power Shielding Device Sensor Array Storage Large Storage Unit Protection Power Shielding Weapon Light Assault Rifle Energy Gun Beam Rifle Ballistic Gun Light Assault Rifle Launcher Mini Grenade Launcher Build | -11 -10 -9 -9 -8 ------- Run | Yrd Mat Mat Min Mat Slots Evolved 4 | . . 2 . 2 Power . | . . . . . Propulsion 1 | . . . . 1 Utility 3 | . . 2 . 1 Weapon . | . . . . . Parts Attached 19 | 6 5 7 1 . Power 3 | 1 1 1 . . Engine 3 | 1 1 1 . . Core . | . . . . . Reactor . | . . . . . Propulsion 3 | 2 . 1 . . Treads 3 | 2 . 1 . . Leg . | . . . . . Wheel . | . . . . . Hover . | . . . . . Flight . | . . . . . Utility 5 | 1 2 2 . . Device 1 | . . 1 . . Storage 2 | 1 1 . . . Processor . | . . . . . Hackware . | . . . . . Protection 2 | . 1 1 . . Artifact . | . . . . . Weapon 8 | 2 2 3 1 . Energy Gun 4 | 1 1 2 . . Energy Cannon . | . . . . . Ballistic Gun 2 | 1 . . 1 . Ballistic Cannon . | . . . . . Launcher 2 | . 1 1 . . Special Weapon . | . . . . . Impact Weapon . | . . . . . Slashing Weapon . | . . . . . Piercing Weapon . | . . . . . Special Melee Weapon . | . . . . . Unidentified Prototypes . | . . . . . Parts Lost 5 | . 1 2 2 . Power . | . . . . . Propulsion 1 | . . 1 . . Utility 1 | . . . 1 . Weapon 3 | . 1 1 1 . Highest Loss Streak 2 | . 1 2 2 . To Critical Strikes . | . . . . . Average Slot Usage (%) 95 | . 97 92 92 72 Engine 12 | . 14 11 11 9 Treads 25 | . 28 21 22 18 Device 4 | . . 11 11 9 Storage 12 | . 14 11 11 9 Protection 13 | . 12 16 16 9 Energy Gun 12 | . 13 16 5 . Ballistic Gun 9 | . 13 . 4 9 Launcher 3 | . . 5 11 9 Naked Turns . | . . . . . Heaviest Build 38 | 13 32 38 36 32 Greatest Support 40 | 40 40 40 40 40 Greatest Overweight (x) 1 | . . 1 . . Average Overweight (x) . | . . . . . Largest Inventory Capacity 15 | 8 15 15 15 15 Average Capacity 13 | 6 13 15 15 15 Most Carried 15 | 1 14 15 12 11 Average Carried 10 | . 9 13 11 11 Final Capacity 15 | 8 15 15 15 15 Final Carried 14 | 1 14 12 11 11 Class Distribution -------------------- 86% | Mutant 13% | Scavenger-Mutant Dominant Class ---------------- Mutant | -10/Materials Mutant | -9/Materials Scavenger-Mutant | -9/Mines Mutant | -8/Materials Resources | -11 -10 -9 -9 -8 ----------- Run | Yrd Mat Mat Min Mat Matter Collected 669 | 172 272 176 49 . Remotely . | . . . . . Salvage Created 647 | . 348 232 67 . Parts 41 | . 22 14 5 . Haulers Intercepted . | . . . . . Recyclers Shooed 2 | . 1 1 . . Parts Field Recycled . | . . . . . Retrieved Matter . | . . . . . Parts Self-Destructed . | . . . . . Prevented . | . . . . . Kills | -11 -10 -9 -9 -8 ------- Run | Yrd Mat Mat Min Mat Combat Hostiles Destroyed 14 | . 7 5 2 . Guns 11 | . 7 3 1 . AOE 3 | . . 2 1 . Classes Destroyed 8 | . 6 1 1 . Worker 1 | . 1 . . . Recycler 1 | . 1 . . . Operator 1 | . 1 . . . Watcher 1 | . 1 . . . Swarmer 3 | . 3 . . . Grunt 7 | . 4 2 1 . Brawler 1 | . . . 1 . Sentry 3 | . . 3 . . Best Kill Streak 5 | . 5 2 2 . Combat Bots Only 3 | . 3 2 2 . Max Kills in Single Turn 2 | . 2 1 1 . Gunslinging . | . . . . . Exploded 1 | . . 1 1 . Melee . | . . . . . Uniques/NPCs Destroyed . | . . . . . Combat | -11 -10 -9 -9 -8 -------- Run | Yrd Mat Mat Min Mat Hostile Shots Fired 73 | . 27 39 3 4 Missed 21 | . 6 10 2 3 Damage Taken 965 | . 222 562 173 8 Core 134 | . 47 72 15 . Absorbed by Shields . | . . . . . Redirected to Shielding 23 | . 3 16 4 . Core Remaining (%) 86 | 100 81 . 78 . Volleys Fired 60 | . 35 21 4 . Largest 2 | . 2 2 2 . Hottest 106 | . 86 106 86 . Shots Fired 115 | . 70 39 6 . Gun 106 | . 69 35 2 . Cannon . | . . . . . Launcher 9 | . 1 4 4 . Special . | . . . . . Kinetic 34 | . 34 . . . Thermal 35 | . 12 21 2 . Explosive 9 | . 1 4 4 . Electromagnetic 37 | . 23 14 . . Robot Hit Streak 21 | . 8 21 4 . Robot Miss Streak 4 | . 3 4 1 . Penetration Max . | . . . . . Secondary Targets . | . . . . . Shots Hit Robots 69 | . 34 31 4 . Core Hits 34 | . 20 11 3 . Critical Kills 1 | . 1 . . . Critical Parts Destroyed . | . . . . . Critical Strikes 5 | . 3 2 . . Burn 3 | . 2 1 . . Destroy 1 | . 1 . . . Corrupt 1 | . . 1 . . Melee Attacks . | . . . . . Impact . | . . . . . Slashing . | . . . . . Piercing . | . . . . . Sneak Attacks . | . . . . . Combat Hostiles . | . . . . . Follow-up Attacks . | . . . . . Damage Inflicted 1389 | . 412 723 254 . Guns 862 | . 408 439 15 . Cannons . | . . . . . Explosions 523 | . . 284 239 . Melee . | . . . . . Ramming 4 | . 4 . . . Kinetic 141 | . 141 . . . Thermal 457 | . 103 339 15 . Explosive 417 | . . 178 239 . Electromagnetic 370 | . 164 206 . . Impact . | . . . . . Slashing . | . . . . . Piercing . | . . . . . Highest Corruption 6 | . . 2 6 . Average Corruption 3 | . . 2 3 . Corruption Purged . | . . . . . Corruption Blocked . | . . . . . Effects 10 | . . 4 6 . Message Errors 1 | . . . 1 . Matter Fused 4 | . . 1 3 . Heat Flow Errors 2 | . . 1 1 . Energy Discharges 2 | . . 1 1 . Data Loss (minor) 1 | . . 1 . . Overload Shots . | . . . . . Overflow Damage 18 | . . 18 . . Projectiles . | . . . . . Explosions 18 | . . 18 . . Melee . | . . . . . Knockbacks . | . . . . . Impact . | . . . . . Kinetic . | . . . . . Secondary . | . . . . . Self-Inflicted Damage 287 | . . 145 142 . Shots 6 | . . 3 3 . Rammed 1 | . 1 . . . Targets Rammed 1 | . 1 . . . Kicked . | . . . . . Crushed . | . . . . . Highest Temperature 429 | . 76 429 248 . Average Temperature 101 | . 25 171 89 . Received Heat Transfer 255 | . 69 186 . . Siege Activations . | . . . . . Robots Corrupted . | . . . . . Combat Hostiles . | . . . . . Parts Fried . | . . . . . Impact Corruptions . | . . . . . Robots Melted . | . . . . . Combat Hostiles . | . . . . . Parts Melted 4 | . 2 2 . . Heat Transferred 1210 | . 407 766 37 . Parts Sabotaged . | . . . . . Parts Stolen . | . . . . . Parts Stripped . | . . . . . Power Chain Reactions 1 | . . 1 . . Alert | -11 -10 -9 -9 -8 ------- Run | Yrd Mat Mat Min Mat Peak Influence 200 | . 150 200 143 55 Initial 78 | . . 4 78 55 Average 70 | . 59 84 110 55 Maximum Alert Level 1 | . . 1 . . Low Security (%) 96 | 100 100 82 100 100 Level 1 3 | . . 17 . . Level 2 . | . . . . . Level 3 . | . . . . . Level 4 . | . . . . . Level 5 . | . . . . . High Security . | . . . . . Max Security . | . . . . . Squads Dispatched 4 | . 3 1 . . Investigation 2 | . 1 1 . . Extermination . | . . . . . Reinforcement 2 | . 2 . . . Assault . | . . . . . Garrison . | . . . . . Intercept . | . . . . . Searches Triggered . | . . . . . Construction Impeded . | . . . . . Haulers Reinforced . | . . . . . Active Scanning Responses . | . . . . . Cargo Convoy Interrupts . | . . . . . Stealth | -11 -10 -9 -9 -8 --------- Run | Yrd Mat Mat Min Mat Distress Signals . | . . . . . Communications Jammed . | . . . . . Distress Signals . | . . . . . Times Spotted 25 | . 15 5 2 3 Peak Tracking Total 4 | . 4 3 2 4 Tactical Retreats 1 | . 1 . . . Traps | -11 -10 -9 -9 -8 ------- Run | Yrd Mat Mat Min Mat Traps Triggered 2 | . 1 1 . . Indirectly . | . . . . . Trap Hack Attempts . | . . . . . Triggered . | . . . . . Disarmed . | . . . . . Reprogrammed . | . . . . . Reused . | . . . . . Traps Extracted . | . . . . . Installed . | . . . . . Triggered . | . . . . . Machines | -11 -10 -9 -9 -8 ---------- Run | Yrd Mat Mat Min Mat Machines Disabled 3 | . 1 1 1 . Max in Single Turn 1 | . 1 1 1 . Machines Repaired . | . . . . . Machines Dismantled . | . . . . . Machines Sabotaged . | . . . . . Overloaded Fab Kills . | . . . . . Hacking | -11 -10 -9 -9 -8 --------- Run | Yrd Mat Mat Min Mat Machines Accessed 6 | . 4 1 1 . Terminals 6 | . 4 1 1 . Fabricators . | . . . . . Repair Stations . | . . . . . Recycling Units . | . . . . . Scanalyzers . | . . . . . Garrison Access . | . . . . . Total Hacks 17 | . 11 3 3 . Successful 6 | . 5 1 . . Failed 11 | . 6 2 3 . Catastrophic 2 | . 1 . 1 . Database Lockouts . | . . . . . Manual 5 | . 5 . . . Terminals 17 | . 11 3 3 . Fabricators . | . . . . . Repair Stations . | . . . . . Recycling Units . | . . . . . Scanalyzers . | . . . . . Garrison Access . | . . . . . Terminal Hacks 6 | . 5 1 . . Emergency Access Points 2 | . 2 . . . Alert Level 1 | . 1 . . . Locate Traps 1 | . 1 . . . Recall Investigation 1 | . 1 . . . Zone Layout 1 | . . 1 . . Fabricator Hacks . | . . . . . Repair Station Hacks . | . . . . . Recycling Unit Hacks . | . . . . . Scanalyzer . | . . . . . Garrison Access Hacks . | . . . . . Unauthorized Hacks . | . . . . . Terminals . | . . . . . Fabricators . | . . . . . Repair Stations . | . . . . . Recycling Units . | . . . . . Scanalyzers . | . . . . . Garrison Access . | . . . . . Data Cores Recovered . | . . . . . Used . | . . . . . Hacking Detections 6 | . 4 1 1 . Full Trace Events 2 | . 1 1 . . Feedback Events . | . . . . . Feedback Blocked . | . . . . . Robot Schematics Acquired . | . . . . . Robots Built . | . . . . . Authchips . | . . . . . Time . | . . . . . Total Robot Build Rating . | . . . . . Part Schematics Acquired . | . . . . . Parts Built . | . . . . . Authchips . | . . . . . Time . | . . . . . Total Part Build Rating . | . . . . . Parts Repaired . | . . . . . Time . | . . . . . Parts Recycled . | . . . . . Recycled Matter . | . . . . . Retrieved Matter . | . . . . . Retrieved Components . | . . . . . Parts Scanalyzed . | . . . . . Part Schematics Acquired . | . . . . . Parts Damaged . | . . . . . Bothacking | -11 -10 -9 -9 -8 ------------ Run | Yrd Mat Mat Min Mat Used RIF Installer . | . . . . . Robots Hacked . | . . . . . Non-combat . | . . . . . Combat . | . . . . . Robot Hacks Applied . | . . . . . Relay Couplers Released . | . . . . . Fabnet Peak Effective % . | . . . . . Robots Rewired . | . . . . . Allies Hacked . | . . . . . Hacks Repelled . | . . . . . Allies | -11 -10 -9 -9 -8 -------- Run | Yrd Mat Mat Min Mat Total Allies . | . . . . . Largest Group . | . . . . . Highest-Rated Group . | . . . . . Highest-Rated Ally . | . . . . . Total Orders . | . . . . . Ally Attacks . | . . . . . Total Damage . | . . . . . Kills . | . . . . . Allies Corrupted . | . . . . . Allies Melted . | . . . . . Intel | -11 -10 -9 -9 -8 ------- Run | Yrd Mat Mat Min Mat Robot Analysis Total . | . . . . . Derelict Logs Recovered 1 | . . . 1 . Drone Launches . | . . . . . Drone Recoveries . | . . . . . Exploration | -11 -10 -9 -9 -8 ------------- Run | Yrd Mat Mat Min Mat Turns Passed 1484 | 72 841 276 277 18 Spaces Moved 772 | 41 433 120 167 11 Core 2 | 2 . . . . Treads 770 | 39 433 120 167 11 Legs . | . . . . . Wheels . | . . . . . Hover . | . . . . . Flight . | . . . . . Fastest Speed 50 | 50 160 160 160 160 Average Speed 159 | 154 160 161 160 160 Slowest Speed 240 | 160 160 240 160 160 Overloaded Moves . | . . . . . Propulsion Burnouts . | . . . . . Robots Hopped . | . . . . . Cave-ins Triggered . | . . . . . Exploration Rate (%) 25 | 4 68 11 39 4 Regions Visited 4 Branch Regions 1 Pre-discovered Areas . | . . . . . Known Exits Taken . | . . . . . Unknown Exits Taken 4 | 1 1 1 1 . Scrap Searched 1 | . . . 1 . Spaces Dug . | . . . . . Terrain Destroyed 68 | . 12 29 27 . Melee . | . . . . . Projectile . | . . . . . AOE 68 | . 12 29 27 . Terrain Rammed . | . . . . . Walls Destroyed . | . . . . . Machines Disabled . | . . . . . Actions | -11 -10 -9 -9 -8 --------- Run | Yrd Mat Mat Min Mat Total 911 | 47 518 164 171 11 Wait 33 | . 25 8 . . Move 768 | 40 432 119 166 11 Hop . | . . . . . Pick Up 21 | 1 16 4 . . Fast Attach 11 | 6 2 3 . . Attach 5 | . 1 3 1 . Detach . | . . . . . Swap 3 | . 2 1 . . Drop 9 | . 4 5 . . Fire 60 | . 35 21 4 . Melee . | . . . . . Ram . | . . . . . Kick . | . . . . . Crush 1 | . 1 . . . Escape Stasis . | . . . . . Rewire . | . . . . . Trap . | . . . . . Miscellaneous . | . . . . . Route ------- -11/Scrapyard -10/Materials (discovered 2 exits: *Mat / [*Min]) -9/Materials -9/Mines -8/Materials History --------- Turn | Location | Event 13 | -11/Scrapyard | Discovered new exit (range 16) 73 | -11/Scrapyard | Entered Materials 129 | -10/Materials | Discovered new exit (range 14) 316 | -10/Materials | Build established: Mutant 845 | -10/Materials | Discovered new exit (range 5) 914 | -10/Materials | Entered another Materials area 914 | -9/Materials | Evolved 2 slots: Utility x2 1172 | -9/Materials | Discovered new exit (range 9) 1190 | -9/Materials | Entered Mines 1401 | -9/Mines | Learned Materials trap positions 1416 | -9/Mines | Discovered new exit (range 8) 1467 | -9/Mines | Entered Materials 1467 | -8/Materials | Evolved 2 slots: Propulsion x1, Utility x1 1468 | -8/Materials | Loaded intel: 12 trap records 1485 | -8/Materials | Self-destructed Last Messages --------------- 01351_ U-05 Engineer builds a Wall. 01351_ U-05 Engineer lays Concrete. 01352_ K-01 Serf collects debris. 01353_ U-05 Engineer lays Concrete. 01360_ U-05 Engineer builds a Wall. 01361_ K-01 Serf collects debris. 01361_ U-05 Engineer lays Concrete. 01370_ System corrupted: Energy discharge (-98). 01401_ System corrupted: Matter fused (-10). 01401_ Acquired derelict log, extracted data. Data stored: Materials trap records. 01416_ EXIT=FOUND 01420_ K-01 Serf cleans the Plasma Injector. 01445_ System corrupted: Matter fused (-8). 01449_ Connecting with Terminal... 01449_ Current location identified: Mines PARAMETERS=PROPULSION+1,UTILITY+1 LOCATION=UNKNOWN GOAL=ESCAPE Loading Materials trap records (x12)... Map ----- +----------------------------------------------------+ | ??????????????????????????????????????????? | | ??????????????????????????????????????????? | | ??????????????????????????????????????????? | | ??????????????????????????????????????????? | | ??????????????????????????????????????????? | | ??????????????????????????????????????????? | | ??????????????????????????????????????????? | | ??????????????????????????????????????????? | | ??????????????????????????????????????????? | | ??????????????????????????????????????????? | | ??????????????????????????????????????????? | | ??????????????????????????????????????????? | | ??????????????????????????????????????????? | | ??????????????????????????????????????????? | | ??????????????????????????????????????????? | | ??????????????????????????????????????????? | | ??????????????????????????????????????????? | | ??????????????????????????????????????????? | | ??????????????????????????????????????????? | | ??????????????????????????????????????????? | | ????????????????????????########??????????? | | ????????????????????????#||!!]]#??????????? | | ????????????????????????#||!!]]#??????????? | | ????????????????????????# #??????????? | | ????????????############# ###????????? | | ?????????? @ #????????? | | ?????????? #????????? | | ??????????s ss #????????? | | ??????????? ###############+######????????? | | ?????????????????????# #????????? | | ?????????????????????# #????????? | | ?????????????????????# [ #????????? | | ?????????????????????# #????????? | | ?????????????????????# #????????? | | ?????????????????????# #????????? | | ?????????????????????# #????????? | | ?????????????????????#############????????? | | | | | | | | | | | | | | | | | | | | | | | | | | | +----------------------------------------------------+ Best States ------------- Heat Dissipation 31 Energy Generation 12 Energy Capacity 265 Matter Stores 300 Matter Capacity 300 Sight Range 16 Robot Scan Range 14 Terrain Scan Density 10 Armor Coverage 150 Power Shielding 33 Evasion (%) 40 Recoil Reduction 2 Item Schematics ----------------- None Robot Schematics ------------------ None Fabricated ------------ Nothing Alien Tech Used ----------------- None Achievements -------------- None Challenges ------------ None Game ------ Seed InsulationAdvancedCharge Manual? 0 Play Time 00:16:29 Cumulative 16.3 hours Start 2024.05.23 @ 12:02:55 End 2024.05.23 @ 12:19:10 Sessions 1 Manual Loads 0 Difficulty Rogue Special Mode None Game No. 18 Rogue 18 Adventurer 0 Explorer 0 Win Type - Total 0 Types 0/0/0/0/0/0/0/0/0 Lore% 14 Gallery% 20 Achievement% 15 Wizard Run 0 Options --------- Layout 0 ASCII 0 Keyboard 0 Movement Mouse Keybinds 0 Fullscreen 1 Font 36/Smallcaps Map View 76x50 Zoom Use 0% Tactical HUD 1 Map Filters NONE Filters NONE Steam 1 RUN: c20beb84-6fb6-4ed7-b3ea-baab5dae4fff